fUST/lending_fUST_20250425
["ID","MTS","AMOUNT","RATE_DAILY","PERIOD"]
[358884076,1745524244178,-501.17847287,0.00016815,2]
[358884077,1745524244187,-502.85630333,0.00016815,2]
[358884078,1745524244198,-695.26,0.00016815,2]
[358884079,1745524244208,-500.0,0.00016815,2]
[358884080,1745524244217,-500.0,0.00016815,2]
[358884081,1745524244227,-1661.26,0.00016815,2]
[358884082,1745524244238,-151.0,0.00016815,2]
[358884083,1745524244248,-151.0,0.00016815,2]
[358884084,1745524244258,-151.0,0.00016815,2]
[358884085,1745524244268,-151.0,0.00016815,2]
[358884086,1745524244278,-151.0,0.00016815,2]
[358884087,1745524244288,-151.0,0.00016815,2]
[358884088,1745524244298,-151.0,0.00016815,2]
[358884089,1745524244307,-501.02104774,0.00016815,2]
[358884090,1745524244317,-151.0,0.00016815,2]
[358884091,1745524244328,-1000.0,0.00016815,2]
[358884092,1745524244338,-500.0,0.00016815,2]
[358884093,1745524244348,-509.32939363,0.00016815,2]
[358884094,1745524244358,-500.0,0.00016815,2]
[358884095,1745524244367,-500.0,0.00016815,2]
[358884096,1745524244377,-3404.59,0.00016815,2]
[358884097,1745524244387,-500.0,0.00016815,2]
[358884098,1745524244397,-639.40498532,0.00016815,2]
[358884099,1745524244407,-500.0,0.00016815,2]
[358884100,1745524244416,-500.0,0.00016815,2]
[358884101,1745524244427,-500.0,0.00016815,2]
[358884102,1745524244436,-500.0,0.00016815,2]
[358884103,1745524244446,-500.0,0.00016815,2]
[358884104,1745524244456,-151.0,0.00016815,2]
[358884105,1745524244465,-242.75708961,0.00016815,2]
[358884106,1745524244475,-151.0,0.00016815,2]
[358884107,1745524244485,-151.0,0.00016815,2]
[358884108,1745524244494,-173.628326,0.00016815,2]
[358884109,1745524244503,-500.0,0.00016815,2]
[358884110,1745524244513,-500.0,0.00016815,2]
[358884111,1745524244522,-500.0,0.00016815,2]
[358884112,1745524244531,-506.34277989,0.00016815,2]
[358884113,1745524244542,-967.0,0.00016815,2]
[358884114,1745524244551,-504.19987783,0.00016815,2]
[358884115,1745524244561,-500.0,0.00016815,2]
[358884116,1745524244570,-500.0,0.00016815,2]
[358884117,1745524244579,-531.89,0.00016815,2]
[358884118,1745524244589,-500.0,0.00016815,2]
[358884119,1745524244598,-1509.1,0.00016815,2]
[358884120,1745524244608,-151.0,0.00016815,2]
[358884121,1745524244618,-151.0,0.00016815,2]
[358884122,1745524244627,-151.0,0.00016815,2]
[358884123,1745524244636,-500.0,0.00016815,2]
[358884124,1745524244646,-500.0,0.00016815,2]
[358884125,1745524244655,-765.3,0.00016815,2]
[358884126,1745524244667,-500.0,0.00016815,2]
[358884127,1745524244678,-151.0,0.00016815,2]
[358884128,1745524244688,-151.0,0.00016815,2]
[358884129,1745524244699,-500.0,0.00016815,2]
[358884130,1745524244709,-151.0,0.00016815,2]
[358884131,1745524244719,-151.0,0.00016815,2]
[358884132,1745524244728,-151.0,0.00016815,2]
[358884133,1745524244737,-258.891616,0.00016815,2]
[358884134,1745524244746,-500.73066007,0.00016815,2]
[358884135,1745524244755,-1761.2,0.00016815,2]
[358884136,1745524244764,-500.65093928,0.00016815,2]
[358884137,1745524244774,-541.53295048,0.00016815,2]
[358884138,1745524244787,-500.0,0.00016815,2]
[358884139,1745524244798,-500.0,0.00016815,2]
[358884140,1745524244808,-500.0,0.00016815,2]
[358884141,1745524244818,-803.16,0.00016815,2]
[358884142,1745524244827,-500.0,0.00016815,2]
[358884143,1745524244837,-500.0,0.00016815,2]
[358884144,1745524244847,-500.0,0.00016815,2]
[358884145,1745524244857,-609.33,0.00016815,2]
[358884146,1745524244868,-500.0,0.00016815,2]
[358884147,1745524244879,-2411.538361,0.00016815,2]
[358884148,1745524244890,-2411.538361,0.00016815,2]
[358884149,1745524244904,-2411.538361,0.00016815,2]
[358884150,1745524244914,-510.60520705,0.00016815,2]
[358884151,1745524244925,-2411.538361,0.00016815,2]
[358884152,1745524244935,-2411.538361,0.00016815,2]
[358884153,1745524244945,-2411.538361,0.00016815,2]
[358884154,1745524244954,-2411.538361,0.00016815,2]
[358884155,1745524244964,-2411.538361,0.00016815,2]
[358884156,1745524244975,-2411.538361,0.00016815,2]
[358884157,1745524244985,-2411.538361,0.00016815,2]
[358884158,1745524244994,-2411.538361,0.00016815,2]
[358884159,1745524245004,-2411.538361,0.00016815,2]
[358884160,1745524245013,-2411.538361,0.00016815,2]
[358884161,1745524245022,-2411.538361,0.00016815,2]
[358884162,1745524245032,-2411.538361,0.00016815,2]
[358884163,1745524245042,-2411.538361,0.00016815,2]
[358884164,1745524245051,-535.70444565,0.00016815,2]
[358884165,1745524245061,-500.0,0.00016815,2]
[358884166,1745524245070,-500.0,0.00016815,2]
[358884167,1745524245080,-151.0,0.00016815,2]
[358884168,1745524245089,-151.0,0.00016815,2]
[358884169,1745524245099,-151.0,0.00016815,2]
[358884170,1745524245110,-151.0,0.00016815,2]
[358884171,1745524245120,-151.0,0.00016815,2]
[358884172,1745524245130,-151.0,0.00016815,2]
[358884173,1745524245139,-151.0,0.00016815,2]
[358884174,1745524245149,-640.86907224,0.00016851,2]
[358884175,1745524245159,-500.0,0.00016873,2]
[358884176,1745524245168,-500.0,0.00016873,2]
[358884177,1745524245177,-500.0,0.00016873,2]
[358884178,1745524245187,-500.90416285,0.00016873,2]
[358884179,1745524245196,-500.0,0.00016873,2]
[358884180,1745524245206,-340.44994791,0.00016873,2]
[358884181,1745524245215,-500.0,0.00016873,2]
[358884182,1745524245225,-160.38707464,0.00016873,2]
[358884183,1745524245234,-500.0,0.00016873,2]
[358884185,1745524245243,-500.0,0.00016873,2]
[358884187,1745524245253,-500.0,0.00016873,2]
[358884189,1745524245263,-208.51997578,0.00016873,2]
[358884190,1745524245272,-481.25447053,0.00016873,2]
[358884191,1745524245281,-500.0,0.00016873,2]
[358884192,1745524245291,-500.0,0.00016873,2]
[358884193,1745524245301,-500.0,0.00016873,2]
[358884194,1745524245310,-500.0,0.00016873,2]
[358884195,1745524245320,-500.0,0.00016873,2]
[358884196,1745524245329,-500.0,0.00016873,2]
[358884197,1745524245338,-640.86907224,0.0001692,2]
[358884198,1745524245348,-640.86907224,0.00016989,2]
[358884199,1745524245357,-500.0,0.0001706,2]
[358884200,1745524245368,-151.0,0.0001706,2]
[358884201,1745524245378,-183.60976531,0.00017073,2]
[358884203,1745524245387,-310.59678541,0.00017073,2]
[358884205,1745524245397,-500.0,0.00017073,2]
[358884207,1745524245406,-500.0,0.00017073,2]
[358884209,1745524245416,-500.0,0.00017073,2]
[358884211,1745524245425,-500.0,0.00017073,2]
[358884213,1745524245435,-500.0,0.00017073,2]
[358884215,1745524245445,-500.0,0.00017073,2]
[358884217,1745524245454,-500.40766554,0.00017073,2]
[358884219,1745524245463,-500.0,0.00017073,2]
[358884221,1745524245474,-500.0,0.00017073,2]
[358884222,1745524245484,-477.22363418,0.00017073,2]
[358884224,1745524245494,-500.0,0.00017073,2]
[358884226,1745524245504,-500.0,0.00017073,2]
[358884228,1745524245514,-500.0,0.00017073,2]
[358884230,1745524245522,-500.0,0.00017073,2]
[358884231,1745524245532,-500.0,0.00017073,2]
[358884233,1745524245541,-500.0,0.00017073,2]
[358884235,1745524245551,-500.0,0.00017073,2]
[358884237,1745524245561,-500.0,0.00017073,2]
[358884239,1745524245570,-500.0,0.00017078,2]
[358884241,1745524245580,-500.0,0.00017085,2]
[358884243,1745524245590,-500.0,0.00017085,2]
[358884245,1745524245601,-1610.75,0.00017085,2]
[358884247,1745524245621,-500.0,0.00017085,2]
[358884249,1745524245635,-502.45,0.00017085,2]
[358884251,1745524245644,-4565.85,0.00017085,2]
[358884253,1745524245653,-500.0,0.00017085,2]
[358884254,1745524245663,-5781.75,0.00017085,2]
[358884256,1745524245672,-500.0,0.00017085,2]
[358884258,1745524245682,-1093.39,0.00017085,2]
[358884260,1745524245691,-500.0,0.00017085,2]
[358884262,1745524245700,-9387.04,0.00017085,2]
[358884263,1745524245710,-6280.76,0.00017085,2]
[358884265,1745524245719,-1090.92,0.00017085,2]
[358884267,1745524245729,-500.0,0.00017085,2]
[358884269,1745524245739,-863.49,0.00017085,2]
[358884271,1745524245748,-568.63,0.00017085,2]
[358884273,1745524245758,-4704.07,0.00017085,2]
[358884275,1745524245767,-1843.07,0.00017085,2]
[358884277,1745524245778,-500.0,0.00017085,2]
[358884279,1745524245790,-500.0,0.00017085,2]
[358884281,1745524245799,-1724.01,0.00017085,2]
[358884283,1745524245808,-500.0,0.00017085,2]
[358884285,1745524245818,-583.61,0.00017085,2]
[358884287,1745524245829,-500.0,0.00017085,2]
[358884289,1745524245838,-500.0,0.00017085,2]
[358884291,1745524245849,-503.38,0.00017086,2]
[358884293,1745524245860,-500.0,0.00017086,2]
[358884294,1745524245871,-500.0,0.00017086,2]
[358884296,1745524245880,-1019.56,0.00017086,2]
[358884297,1745524245890,-500.0,0.00017086,2]
[358884298,1745524245900,-502.74141632,0.00017086,2]
[358884299,1745524245911,-506.15298993,0.00017086,2]
[358884300,1745524245920,-505.19616564,0.00017086,2]
[358884301,1745524245929,-500.0,0.00017086,2]
[358884302,1745524245939,-500.0,0.00017086,2]
[358884303,1745524245948,-399.0784713,0.00017086,2]
[358884304,1745524245959,-500.0,0.00017086,2]
[358884305,1745524245971,-500.0,0.00017086,2]
[358884306,1745524245984,-1315.67,0.00017086,2]
[358884307,1745524245994,-509.72264243,0.00017086,2]
[358884308,1745524246003,-506.67288113,0.00017086,2]
[358884309,1745524246014,-505.18507414,0.00017086,2]
[358884310,1745524246024,-1136.54,0.00017086,2]
[358884311,1745524246034,-500.0,0.00017086,2]
[358884312,1745524246045,-500.0,0.00017086,2]
[358884313,1745524246054,-1749.9,0.00017086,2]
[358884314,1745524246063,-500.0,0.00017086,2]
[358884315,1745524246073,-606.64,0.00017086,2]
[358884316,1745524246082,-509.00604722,0.00017086,2]
[358884317,1745524246091,-1310.16,0.00017086,2]
[358884318,1745524246101,-693.49,0.00017086,2]
[358884319,1745524246110,-501.62148324,0.00017086,2]
[358884320,1745524246119,-500.0,0.00017086,2]
[358884321,1745524246129,-500.0,0.00017086,2]
[358884322,1745524246139,-504.13450546,0.00017086,2]
[358884323,1745524246148,-500.0,0.00017086,2]
[358884324,1745524246158,-500.0,0.00017086,2]
[358884325,1745524246167,-500.0,0.00017086,2]
[358884326,1745524246176,-500.0,0.00017086,2]
[358884327,1745524246186,-1050.67,0.00017086,2]
[358884328,1745524246197,-669.34,0.00017086,2]
[358884329,1745524246207,-4362.67,0.00017086,2]
[358884330,1745524246216,-500.0,0.00017086,2]
[358884331,1745524246226,-500.0,0.00017086,2]
[358884332,1745524246235,-1440.68,0.00017086,2]
[358884333,1745524246245,-500.0,0.00017086,2]
[358884334,1745524246256,-500.0,0.00017086,2]
[358884335,1745524246266,-602.3823,0.00017086,2]
[358884336,1745524246275,-1678.32,0.00017086,2]
[358884337,1745524246284,-500.0,0.00017086,2]
[358884338,1745524246295,-500.0,0.00017086,2]
[358884339,1745524246306,-4053.66,0.00017086,2]
[358884340,1745524246316,-500.0,0.00017086,2]
[358884341,1745524246326,-500.0,0.00017086,2]
[358884342,1745524246336,-1187.28,0.00017086,2]
[358884343,1745524246346,-643.87,0.00017086,2]
[358884344,1745524246355,-500.0,0.00017086,2]
[358884345,1745524246365,-1402.52,0.00017086,2]
[358884346,1745524246375,-500.0,0.00017086,2]
[358884347,1745524246385,-599.93,0.00017086,2]
[358884348,1745524246394,-500.0,0.00017086,2]
[358884349,1745524246404,-500.0,0.00017086,2]
[358884350,1745524246414,-500.0,0.00017086,2]
[358884351,1745524246423,-500.0,0.00017086,2]
[358884352,1745524246434,-500.0,0.00017086,2]
[358884353,1745524246443,-500.0,0.00017086,2]
[358884354,1745524246453,-500.0,0.00017086,2]
[358884355,1745524246462,-500.0,0.00017086,2]
[358884356,1745524246472,-1850.52,0.00017086,2]
[358884357,1745524246482,-500.0,0.00017086,2]
[358884358,1745524246491,-500.0,0.00017086,2]
[358884359,1745524246500,-4499.32,0.00017086,2]
[358884360,1745524246510,-3908.64,0.00017086,2]
[358884361,1745524246519,-507.99,0.00017086,2]
[358884362,1745524246529,-528.57,0.00017086,2]
[358884363,1745524246538,-500.0,0.00017086,2]
[358884364,1745524246548,-649.42,0.00017086,2]
[358884365,1745524246557,-892.39,0.00017086,2]
[358884366,1745524246567,-500.0,0.00017086,2]
[358884367,1745524246576,-751.46,0.00017086,2]
[358884368,1745524246585,-500.0,0.00017086,2]
[358884369,1745524246594,-500.0,0.00017086,2]
[358884370,1745524246604,-417.55234371,0.00017086,2]
[358884371,1745524246615,-4410.01,0.00017086,2]
[358884372,1745524246625,-195.17968762,0.00017086,2]
[358884373,1745524246634,-500.0,0.00017086,2]
[358884374,1745524246644,-809.96,0.00017086,2]
[358884375,1745524246653,-500.0,0.00017086,2]
[358884376,1745524246662,-500.0,0.00017086,2]
[358884377,1745524246672,-500.0,0.00017086,2]
[358884378,1745524246681,-500.0,0.00017086,2]
[358884379,1745524246691,-500.0,0.00017086,2]
[358884380,1745524246700,-500.0,0.00017086,2]
[358884381,1745524246709,-620.73410057,0.00017086,2]
[358884382,1745524246718,-500.0,0.00017086,2]
[358884383,1745524246727,-500.0,0.00017086,2]
[358884384,1745524246736,-317.27692035,0.00017086,2]
[358884385,1745524246745,-500.0,0.00017087,2]
[358884386,1745524246755,-832.16,0.00017087,2]
[358884387,1745524246764,-500.0,0.00017087,2]
[358884388,1745524246774,-500.0,0.00017087,2]
[358884389,1745524246786,-500.0,0.00017087,2]
[358884390,1745524246803,-613.26,0.00017087,2]
[358884391,1745524246813,-1504.3,0.00017087,2]
[358884392,1745524246823,-764.91,0.00017087,2]
[358884393,1745524246833,-500.0,0.00017087,2]
[358884394,1745524246844,-500.0,0.00017087,2]
[358884395,1745524246853,-1365.19,0.00017087,2]
[358884396,1745524246863,-500.0,0.00017087,2]
[358884397,1745524246872,-500.0,0.00017087,2]
[358884398,1745524246882,-568.47,0.00017087,2]
[358884399,1745524246892,-500.0,0.00017087,2]
[358884400,1745524246902,-1337.94,0.00017087,2]
[358884401,1745524246912,-783.58,0.00017087,2]
[358884402,1745524246923,-500.0,0.00017087,2]
[358884403,1745524246934,-1529.23,0.00017087,2]
[358884404,1745524246946,-500.0,0.00017087,2]
[358884405,1745524246957,-1055.99,0.00017087,2]
[358884406,1745524246966,-500.0,0.00017087,2]
[358884407,1745524246976,-520.85142931,0.00017087,2]
[358884408,1745524246986,-500.0,0.00017087,2]
[358884409,1745524246996,-500.0,0.00017087,2]
[358884410,1745524247005,-503.31382095,0.00017087,2]
[358884411,1745524247014,-548.88449254,0.00017087,2]
[358884412,1745524247024,-500.0,0.00017087,2]
[358884413,1745524247033,-500.0,0.00017087,2]
[358884414,1745524247042,-500.0,0.00017087,2]
[358884415,1745524247051,-500.0,0.00017087,2]
[358884416,1745524247061,-500.0,0.00017087,2]
[358884417,1745524247071,-803.73,0.00017087,2]
[358884418,1745524247081,-500.0,0.00017087,2]
[358884419,1745524247092,-829.67,0.00017087,2]
[358884420,1745524247102,-1323.04,0.00017087,2]
[358884421,1745524247111,-952.08,0.00017087,2]
[358884422,1745524247121,-500.0,0.00017087,2]
[358884423,1745524247131,-500.0,0.00017087,2]
[358884424,1745524247140,-528.46195602,0.00017087,2]
[358884425,1745524247304,-1001.81,0.00017087,2]
[358884426,1745524247314,-500.0,0.00017087,2]
[358884427,1745524247326,-500.0,0.00017087,2]
[358884428,1745524247338,-500.0,0.00017087,2]
[358884429,1745524247348,-2411.538361,0.00017087,2]
[358884430,1745524247358,-2411.538365,0.00017087,2]
[358884431,1745524247367,-500.0,0.00017087,2]
[358884432,1745524247377,-506.52,0.00017087,2]
[358884433,1745524247386,-500.0,0.00017087,2]
[358884434,1745524247396,-765.41,0.00017087,2]
[358884435,1745524247405,-500.0,0.00017087,2]
[358884436,1745524247415,-500.0,0.00017087,2]
[358884437,1745524247424,-500.0,0.00017087,2]
[358884438,1745524247434,-503.14370427,0.00017087,2]
[358884439,1745524247444,-500.0,0.00017087,2]
[358884440,1745524247453,-500.0,0.00017087,2]
[358884441,1745524247464,-500.0,0.00017087,2]
[358884442,1745524247475,-1299.59,0.00017087,2]
[358884443,1745524247485,-1673.55,0.00017087,2]
[358884444,1745524247494,-847.52,0.00017087,2]
[358884445,1745524247504,-1103.67,0.00017087,2]
[358884446,1745524247515,-500.0,0.00017087,2]
[358884447,1745524247525,-500.0,0.00017087,2]
[358884448,1745524247534,-500.0,0.00017087,2]
[358884449,1745524247544,-500.0,0.00017087,2]
[358884450,1745524247555,-500.0,0.00017087,2]
[358884451,1745524247565,-500.0,0.00017087,2]
[358884452,1745524247575,-594.43,0.00017087,2]
[358884453,1745524247585,-500.0,0.00017087,2]
[358884454,1745524247595,-500.0,0.00017087,2]
[358884455,1745524247604,-500.0,0.00017087,2]
[358884456,1745524247614,-955.31,0.00017087,2]
[358884457,1745524247624,-8121.09,0.00017087,2]
[358884458,1745524247634,-678.82,0.00017087,2]
[358884459,1745524247644,-4183.75,0.00017087,2]
[358884460,1745524247654,-500.0,0.00017087,2]
[358884461,1745524247663,-500.0,0.00017087,2]
[358884462,1745524247674,-607.15538036,0.00017087,2]
[358884463,1745524247684,-500.0,0.00017087,2]
[358884464,1745524247696,-500.0,0.00017087,2]
[358884465,1745524247706,-1063.07,0.00017087,2]
[358884466,1745524247715,-1627.51,0.00017087,2]
[358884467,1745524247726,-500.0,0.00017087,2]
[358884468,1745524247736,-500.0,0.00017087,2]
[358884469,1745524247746,-570.79,0.00017087,2]
[358884470,1745524247757,-680.5,0.00017087,2]
[358884471,1745524247767,-500.0,0.00017087,2]
[358884472,1745524247776,-500.0,0.00017087,2]
[358884473,1745524247789,-500.0,0.00017087,2]
[358884474,1745524247799,-500.0,0.00017087,2]
[358884475,1745524247810,-371.4452492,0.00017087,2]
[358884476,1745524247822,-500.0,0.00017087,2]
[358884477,1745524247832,-637.95300832,0.00017087,2]
[358884478,1745524247842,-831.23,0.00017087,2]
[358884479,1745524247851,-500.0,0.00017087,2]
[358884480,1745524247861,-500.0,0.00017087,2]
[358884481,1745524247871,-1150.86,0.00017087,2]
[358884482,1745524247881,-6534.19,0.00017087,2]
[358884483,1745524247890,-1086.6,0.00017087,2]
[358884484,1745524247899,-980.97,0.00017087,2]
[358884485,1745524247909,-507.15,0.00017087,2]
[358884486,1745524247918,-1143.43,0.00017087,2]
[358884487,1745524247929,-500.0,0.00017087,2]
[358884488,1745524247939,-500.0,0.00017087,2]
[358884489,1745524247949,-505.60450518,0.00017087,2]
[358884490,1745524247958,-1138.89,0.00017087,2]
[358884491,1745524247967,-500.0,0.00017087,2]
[358884492,1745524247976,-609.52,0.00017087,2]
[358884493,1745524247987,-366.93950702,0.00017087,2]
[358884494,1745524247997,-760.57,0.00017087,2]
[358884495,1745524248008,-2975.29,0.00017087,2]
[358884496,1745524248017,-500.0,0.00017087,2]
[358884497,1745524248026,-1860.88,0.00017087,2]
[358884498,1745524248036,-500.0,0.00017087,2]
[358884499,1745524248045,-500.0,0.00017087,2]
[358884500,1745524248054,-504.93828522,0.00017087,2]
[358884501,1745524248064,-863.13,0.00017087,2]
[358884502,1745524248073,-500.0,0.00017087,2]
[358884503,1745524248083,-500.0,0.00017087,2]
[358884504,1745524248092,-500.0,0.00017087,2]
[358884505,1745524248102,-1743.164742,0.00017088,2]
[358884506,1745524248112,-1743.164742,0.00017088,2]
[358884507,1745524248123,-151.0,0.00017088,2]
[358884508,1745524248133,-180.612736,0.00017088,2]
[358884509,1745524248143,-151.0,0.00017088,2]
[358884510,1745524248154,-151.0,0.00017088,2]
[358884511,1745524248165,-500.0,0.00017089,2]
[358884512,1745524248175,-500.0,0.00017089,2]
[358884513,1745524248185,-517.30444048,0.00017089,2]
[358884514,1745524248195,-500.0,0.00017089,2]
[358884515,1745524248205,-503.29216947,0.00017089,2]
[358884516,1745524248215,-500.0,0.00017089,2]
[358884517,1745524248224,-500.0,0.00017089,2]
[358884518,1745524248234,-500.0,0.00017089,2]
[358884519,1745524248243,-500.0,0.00017089,2]
[358884520,1745524248253,-151.0,0.00017089,2]
[358884521,1745524248262,-151.0,0.00017089,2]
[358884522,1745524248272,-500.0,0.00017089,2]
[358884523,1745524248281,-500.0,0.00017089,2]
[358884524,1745524248290,-500.0,0.00017089,2]
[358884525,1745524248299,-500.0,0.00017089,2]
[358884526,1745524248309,-500.0,0.00017089,2]
[358884527,1745524248318,-500.0,0.00017089,2]
[358884528,1745524248327,-500.0,0.00017089,2]
[358884529,1745524248338,-500.0,0.00017089,2]
[358884530,1745524248350,-217.10001475,0.00017089,2]
[358884531,1745524248360,-500.0,0.00017089,2]
[358884532,1745524248370,-500.0,0.00017089,2]
[358884533,1745524248380,-500.0,0.00017089,2]
[358884534,1745524248389,-502.38,0.00017089,2]
[358884535,1745524248399,-151.0,0.00017089,2]
[358884536,1745524248408,-151.0,0.00017089,2]
[358884537,1745524248418,-151.0,0.00017089,2]
[358884538,1745524248428,-221.681448,0.00017089,2]
[358884539,1745524248437,-500.0,0.00017089,2]
[358884540,1745524248447,-500.0,0.00017089,2]
[358884541,1745524248457,-500.0,0.00017089,2]
[358884542,1745524248466,-500.0,0.00017089,2]
[358884543,1745524248477,-151.0,0.00017089,2]
[358884544,1745524248486,-151.0,0.00017089,2]
[358884545,1745524248496,-151.0,0.00017089,2]
[358884546,1745524248506,-151.0,0.00017089,2]
[358884547,1745524248516,-151.0,0.00017089,2]
[358884548,1745524248525,-151.0,0.00017089,2]
[358884549,1745524248535,-151.0,0.00017089,2]
[358884550,1745524248545,-627.99,0.00017089,2]
[358884551,1745524248556,-151.0,0.00017089,2]
[358884552,1745524248566,-500.0,0.00017089,2]
[358884553,1745524248576,-500.0,0.00017089,2]
[358884554,1745524248586,-1242.06,0.00017089,2]
[358884555,1745524248595,-500.0,0.00017089,2]
[358884556,1745524248605,-500.0,0.00017089,2]
[358884557,1745524248615,-500.0,0.00017089,2]
[358884558,1745524248626,-500.0,0.00017089,2]
[358884559,1745524248635,-500.0,0.00017089,2]
[358884560,1745524248645,-151.0,0.00017089,2]
[358884561,1745524248655,-251.939968,0.00017089,2]
[358884562,1745524248665,-500.0,0.00017089,2]
[358884563,1745524248675,-1743.164742,0.00017089,2]
[358884564,1745524248685,-500.0,0.00017089,2]
[358884565,1745524248694,-1743.164742,0.00017089,2]
[358884566,1745524248704,-1743.164742,0.00017089,2]
[358884567,1745524248713,-1743.164742,0.00017089,2]
[358884568,1745524248723,-1743.164742,0.00017089,2]
[358884569,1745524248732,-1743.164742,0.00017089,2]
[358884570,1745524248742,-1743.164742,0.00017089,2]
[358884571,1745524248752,-1743.164742,0.00017089,2]
[358884572,1745524248761,-500.0,0.00017089,2]
[358884573,1745524248771,-500.0,0.00017089,2]
[358884574,1745524248781,-500.0,0.00017089,2]
[358884575,1745524248794,-561.46,0.00017089,2]
[358884576,1745524248804,-241.58091297,0.00017089,2]
[358884577,1745524248814,-525.83542448,0.00017089,2]
[358884578,1745524248823,-500.0,0.00017089,2]
[358884579,1745524248834,-500.0,0.00017089,2]
[358884580,1745524248843,-500.0,0.00017089,2]
[358884581,1745524248852,-457.02890223,0.00017089,2]
[358884582,1745524248863,-544.52755976,0.00017089,2]
[358884583,1745524248873,-500.0,0.00017089,2]
[358884584,1745524248883,-598.83968167,0.00017089,2]
[358884585,1745524248893,-500.0,0.00017089,2]
[358884586,1745524248902,-151.0,0.00017089,2]
[358884587,1745524248912,-151.0,0.00017089,2]
[358884588,1745524248922,-151.0,0.00017089,2]
[358884589,1745524248932,-151.0,0.00017089,2]
[358884590,1745524248941,-500.0,0.00017089,2]
[358884591,1745524248951,-500.0,0.00017089,2]
[358884592,1745524248961,-2686.33,0.00017089,2]
[358884593,1745524248970,-500.0,0.00017089,2]
[358884594,1745524248980,-521.25,0.00017089,2]
[358884595,1745524248990,-1083.01,0.00017089,2]
[358884596,1745524248999,-520.69,0.00017089,2]
[358884597,1745524249009,-698.34,0.00017089,2]
[358884598,1745524249019,-500.0,0.00017089,2]
[358884599,1745524249028,-500.0,0.00017089,2]
[358884600,1745524249038,-1520.78,0.00017089,2]
[358884601,1745524249047,-500.0,0.00017089,2]
[358884602,1745524249057,-606.95,0.00017089,2]
[358884603,1745524249067,-500.0,0.00017089,2]
[358884604,1745524249077,-695.26,0.00017089,2]
[358884605,1745524249087,-500.0,0.00017089,2]
[358884606,1745524249096,-500.0,0.00017089,2]
[358884607,1745524249106,-1661.26,0.00017089,2]
[358884608,1745524249115,-151.0,0.00017089,2]
[358884609,1745524249126,-151.0,0.00017089,2]
[358884610,1745524249135,-151.0,0.00017089,2]
[358884611,1745524249187,-151.0,0.00017089,2]
[358884612,1745524249196,-1000.0,0.00017089,2]
[358884613,1745524249206,-281.042566,0.00017089,2]
[358884614,1745524249216,-500.0,0.00017089,2]
[358884615,1745524249226,-500.0,0.00017089,2]
[358884616,1745524249236,-500.0,0.00017089,2]
[358884617,1745524249245,-3404.59,0.00017089,2]
[358884618,1745524249254,-500.0,0.00017089,2]
[358884619,1745524249264,-500.0,0.00017089,2]
[358884620,1745524249273,-500.0,0.00017089,2]
[358884621,1745524249283,-500.0,0.00017089,2]
[358884622,1745524249293,-500.0,0.00017089,2]
[358884623,1745524249303,-500.0,0.00017089,2]